Cogmind - Beta 16 @@@ ROGUE MODE // 2025.11.21 @ 22:09:23 Player: Spencer_Rockford Result: Destroyed by S-27 Virus with Autogun Performance ------------- Evolutions (3) 1500 Regions Visited (7) 1400 Robots Destroyed (76) 380 Value Destroyed (2547) 2547 Prototype IDs (4) 80 Alien Tech Used (0) 0 Bonus (0) 0 TOTAL SCORE: 5907 Bonus ------- None Cogmind --------- Core Integrity 0/700 Matter 300/300 Energy 100/100 System Corruption 7% Temperature Cool (0) Movement Core (50) Location -7/Lower Caves Parts ------- > --- POWER (1) -------- (None) > --- PROPULSION (4) --- (None) > --- UTILITY (4) ------ Targeting Computer > --- WEAPON (4) ------- (None) > --- INVENTORY (5) ---- Enhanced Nuclear Core Micro Nuclear Core Targeting Computer Weapon Cycler Powered Hammer Peak State ------------ > --- POWER ------------ Micro Nuclear Core > --- PROPULSION ------- Light Treads Light Treads Advanced Treads Cesium-ion Thruster > --- UTILITY ---------- Improved Heat Sink Improved Cooling System Targeting Computer Particle Charger > --- WEAPON ----------- Pulse Rifle Heavy Laser Heavy Ion Cannon Heavy Ion Cannon > --- INVENTORY -------- Enhanced Nuclear Core Micro Nuclear Core Targeting Computer Weapon Cycler Powered Hammer [Rating: 39] Favorites ----------- Power Heavy Ion Engine Engine Heavy Ion Engine Power Core Micro Nuclear Core Propulsion Armored Treads Treads Armored Treads Leg Aluminum Leg Flight Unit Cesium-ion Thruster Utility Targeting Computer Device Seismic Detector Processor Targeting Computer Protection Hardened Light Armor Plating Weapon Flak Cannon Energy Gun Pulse Rifle Energy Cannon Heavy Ion Cannon Ballistic Gun Light Assault Rifle Ballistic Cannon Flak Cannon Launcher Rocket Launcher Impact Weapon Mace Build | -11 -10 -10 -9 -9 -8 -7 -7 ------- Run | Yrd Mat Min Mat Sto Mat Fac Low Slots Evolved 6 | . . . 2 . 2 2 . Power . | . . . . . . . . Propulsion 2 | . . . . . 1 1 . Utility 2 | . . . . . 1 1 . Weapon 2 | . . . 2 . . . . Parts Attached 54 | 7 4 . 11 . 3 28 1 Power 6 | 1 . . 2 . . 3 . Engine 5 | 1 . . 2 . . 2 . Core 1 | . . . . . . 1 . Reactor . | . . . . . . . . Propulsion 14 | 2 3 . 2 . 1 5 1 Treads 8 | . . . 2 . 1 4 1 Leg 5 | 2 3 . . . . . . Wheel . | . . . . . . . . Hover . | . . . . . . . . Flight 1 | . . . . . . 1 . Utility 11 | 2 . . 2 . 1 6 . Device 8 | 2 . . 1 . . 5 . Storage . | . . . . . . . . Processor 2 | . . . 1 . 1 . . Hackware . | . . . . . . . . Protection 1 | . . . . . . 1 . Artifact . | . . . . . . . . Weapon 23 | 2 1 . 5 . 1 14 . Energy Gun 8 | 1 1 . . . . 6 . Energy Cannon 3 | . . . . . . 3 . Ballistic Gun 6 | 1 . . 1 . . 4 . Ballistic Cannon 4 | . . . 4 . . . . Launcher 1 | . . . . . 1 . . Special Weapon . | . . . . . . . . Impact Weapon 1 | . . . . . . 1 . Slashing Weapon . | . . . . . . . . Piercing Weapon . | . . . . . . . . Special Melee Weapon . | . . . . . . . . Unidentified Prototypes 2 | . . . 1 . . 1 . Parts Lost 32 | . . 1 . . 5 14 12 Power 3 | . . . . . . 2 1 Propulsion 8 | . . . . . 1 3 4 Utility 8 | . . 1 . . . 4 3 Weapon 13 | . . . . . 4 5 4 Highest Loss Streak 10 | . . 1 . . 5 3 10 To Critical Strikes . | . . . . . . . . Average Backups 4 | 2 4 5 4 5 4 4 5 Power 1 | . 1 1 1 1 1 1 2 Propulsion . | . . 1 1 2 1 . . Utility 1 | . . 1 . 1 . 1 2 Weapon 1 | 1 1 2 1 1 1 . 1 Tool/Special . | . . . . . . . . Unused Backups 13 | . 1 . 3 . . 4 5 Power 5 | . 1 . . . . 2 2 Propulsion 2 | . . . 1 . . 1 . Utility 3 | . . . . . . 1 2 Weapon 3 | . . . 2 . . . 1 Tool/Special . | . . . . . . . . Average Slot Usage (%) 85 | . 98 98 98 100 97 70 86 Engine 7 | . 14 14 11 11 9 5 . Core 1 | . . . . . . 1 7 Treads 13 | . . . 20 22 26 10 15 Leg 3 | . 26 28 1 . . . . Flight 2 | . . . . . . 4 3 Device 15 | . 28 26 21 11 9 11 22 Processor 8 | . . . . 11 18 10 7 Protection 1 | . . . . . . 2 . Energy Gun 7 | . 14 14 1 . . 8 14 Energy Cannon 3 | . . . . . . 4 14 Ballistic Gun 5 | . 13 14 9 . . 6 . Ballistic Cannon 11 | . . . 31 44 27 . . Peak Build Rating 39 | 9 9 9 25 25 29 39 36 Average Rating 23 | 5 8 8 20 25 27 26 32 On Entrance 15 | . 9 9 6 25 25 11 35 Avg Prop Armor Cover (%) 1 | . . . . . . 1 1 Naked Turns . | . . . . . . . . Heaviest Build 44 | 10 10 9 34 33 33 44 34 Greatest Support 62 | 20 20 20 40 40 60 62 60 Greatest Overweight (x) 4 | 1 2 . . . . 4 . Average Overweight (x) . | . . . . . . . . Largest Inventory Capacity 5 | 5 5 5 5 5 5 5 5 Average Capacity 5 | 5 5 5 5 5 5 5 5 Most Carried 5 | 5 5 5 5 5 5 5 5 Average Carried 4 | 2 4 5 4 5 4 4 5 Final Capacity 5 | 5 5 5 5 5 5 5 5 Final Carried 5 | 3 5 5 5 5 4 5 5 Class Distribution -------------------- 56% | Gunner 19% | Mutant 10% | Scavenger-Mutant 10% | Skirmisher Dominant Class ---------------- Scavenger-Mutant | -10/Materials Scavenger-Mutant | -10/Mines Gunner | -9/Materials Skirmisher | -9/Storage Gunner | -8/Materials Gunner | -7/Factory Gunner | -7/Lower Caves Resources | -11 -10 -10 -9 -9 -8 -7 -7 ----------- Run | Yrd Mat Min Mat Sto Mat Fac Low Matter Collected 1934 | 283 87 . 251 307 406 590 10 Remotely . | . . . . . . . . Salvage Created 2545 | 170 235 . 307 217 324 1099 193 Parts 117 | 9 12 . 14 13 21 42 6 Haulers Intercepted 2 | . . . 1 1 . . . Recyclers Shooed 1 | . . . . . . 1 . Parts Field Recycled . | . . . . . . . . Retrieved Matter . | . . . . . . . . Parts Self-Destructed 7 | . . . . . . . 7 Prevented . | . . . . . . . . Parts Restored . | . . . . . . . . Kills | -11 -10 -10 -9 -9 -8 -7 -7 ------- Run | Yrd Mat Min Mat Sto Mat Fac Low Combat Hostiles Destroyed 54 | . 4 . 6 6 10 23 5 Melee 3 | . . . . . . 2 1 Guns 19 | . 4 . . . . 15 . Cannons 23 | . . . 6 6 3 5 3 AOE 7 | . . . . . 7 . . Classes Destroyed 14 | 2 1 . 7 . 1 3 . Worker 4 | . . . 1 2 . 1 . Builder 3 | . . . 1 . . 2 . Tunneler 4 | 4 . . . . . . . Hauler 2 | . . . 1 1 . . . Recycler 4 | 1 1 . 1 . . 1 . Mechanic 1 | . . . 1 . . . . Watcher 4 | . . . 2 . 2 . . Swarmer 8 | . . . 1 3 . 3 1 Grunt 27 | . 4 . 3 2 7 8 3 Brawler 1 | . . . . . . 1 . Sentry 11 | . . . 2 1 2 5 1 Specialist 2 | . . . . . . 2 . Hunter 2 | . . . . . 1 1 . Programmer 3 | . . . . . . 3 . Best Kill Streak 4 | 2 4 . 4 3 3 3 1 Combat Bots Only 4 | . 4 . 4 3 3 3 1 Max Kills in Single Turn 2 | 1 1 . 1 2 2 2 1 Gunslinging . | . . . . . . . . Exploded 2 | . . . . . 2 . . Melee 1 | . . . . . . 1 1 Uniques/NPCs Destroyed . | . . . . . . . . Combat | -11 -10 -10 -9 -9 -8 -7 -7 -------- Run | Yrd Mat Min Mat Sto Mat Fac Low Hostile Shots Fired 638 | . 17 38 14 17 81 369 102 Missed 210 | . 2 19 5 5 16 130 33 Hits 428 | . 15 19 9 12 65 239 69 Melee 1 | . . . . . . 1 . Projectile 427 | . 15 19 9 12 65 238 69 Critical Strikes 12 | . . . . 1 5 2 4 Damage Taken 5575 | . 167 141 107 138 1410 2522 1090 Core 1066 | . 57 37 . 29 239 442 262 Absorbed by Shields 22 | . . . . . . 22 . Core Remaining (%) 77 | 100 . 62 . 92 56 . . Volleys Fired 142 | 13 17 . 18 10 19 56 9 Largest 4 | 2 2 . 4 4 4 4 4 Hottest 264 | 70 70 . 148 148 148 264 256 Shots Fired 387 | 26 34 . 72 40 37 147 31 Gun 194 | 26 34 . 11 . . 107 16 Cannon 181 | . . . 61 40 25 40 15 Launcher 12 | . . . . . 12 . . Special . | . . . . . . . . Kinetic 230 | 13 17 . 72 40 25 63 . Thermal 143 | 13 17 . . . . 82 31 Explosive 12 | . . . . . 12 . . Electromagnetic 2 | . . . . . . 2 . Robot Hit Streak 20 | 6 6 . 9 5 7 14 20 Robot Miss Streak 20 | 3 1 . 20 11 6 7 1 Penetration Max . | . . . . . . . . Secondary Targets . | . . . . . . . . Shots Hit Robots 264 | 15 24 . 44 21 20 114 26 Core Hits 208 | 8 12 . 36 21 44 79 8 Critical Kills 1 | . . . . . . 1 . Critical Parts Destroyed 2 | . . . . . . 2 . Critical Strikes 7 | 2 . . . . . 4 1 Burn 4 | 2 . . . . . 1 1 Smash 3 | . . . . . . 3 . Melee Attacks 11 | . . . . . . 11 . Impact 11 | . . . . . . 11 . Slashing . | . . . . . . . . Piercing . | . . . . . . . . Sneak Attacks 4 | . . . . . . 4 . Combat Hostiles . | . . . . . . . . Follow-up Attacks . | . . . . . . . . Damage Inflicted 5951 | 170 220 . 722 250 1026 2914 649 Guns 2340 | 170 220 . 49 . . 1654 247 Cannons 2446 | . . . 673 250 298 832 393 Explosions 728 | . . . . . 728 . . Melee 428 | . . . . . . 428 . Ramming 9 | . . . . . . . 9 Kinetic 2480 | 83 98 . 722 250 298 1029 . Thermal 2290 | 87 122 . . . . 1441 640 Explosive 728 | . . . . . 728 . . Electromagnetic 16 | . . . . . . 16 . Impact 428 | . . . . . . 428 . Slashing . | . . . . . . . . Piercing . | . . . . . . . . Highest Corruption 7 | . . . . . . 7 7 Average Corruption 5 | . . . . . . 4 7 Corruption Purged . | . . . . . . . . Corruption Blocked . | . . . . . . . . Effects 30 | . . . . . . 17 13 Message Errors 7 | . . . . . . 3 4 Matter Fused 7 | . . . . . . 6 1 Heat Flow Errors 6 | . . . . . . 4 2 Energy Discharges 2 | . . . . . . 1 1 Data Loss (minor) 2 | . . . . . . 1 1 Data Loss (major) 2 | . . . . . . . 2 Misfires 3 | . . . . . . 2 1 Weapon Failures 1 | . . . . . . . 1 Overload Shots . | . . . . . . . . Overflow Damage 363 | . . . . . . 352 11 Projectiles 99 | . . . . . . 88 11 Explosions . | . . . . . . . . Melee 264 | . . . . . . 264 . Knockbacks 26 | . . . 5 6 13 2 . Impact 2 | . . . . . . 2 . Kinetic 23 | . . . 5 5 13 . . Secondary 1 | . . . . 1 . . . Self-Inflicted Damage 21 | . . . . . 21 . . Shots 1 | . . . . . 1 . . Rammed 8 | . . . . . . . 8 Targets Rammed 9 | . . . . . . . 9 Kicked . | . . . . . . . . Crushed 1 | . . . . . . . 1 Highest Temperature 280 | 60 280 . 140 280 81 232 252 Average Temperature 68 | 23 123 . 41 113 31 60 70 Received Heat Transfer 1275 | . 90 . 36 36 279 498 336 Siege Activations . | . . . . . . . . Martial Activations . | . . . . . . . . Shielding Activations . | . . . . . . . . Robots Disrupted . | . . . . . . . . Combat Hostiles . | . . . . . . . . Robots Corrupted 4 | . . . . . . 4 . Combat Hostiles 1 | . . . . . . 1 . Parts Fried 6 | . . . . . . 6 . Impact Corruptions 10 | . . . . . . 10 . Robots Melted 1 | . . . . . . . 1 Combat Hostiles 1 | . . . . . . . 1 Parts Melted 6 | 1 2 . . . . 3 . Heat Transferred 3811 | 407 346 . . . . 2022 1036 Parts Sabotaged . | . . . . . . . . Parts Stolen . | . . . . . . . . Parts Stripped . | . . . . . . . . Power Chain Reactions . | . . . . . . . . Alert | -11 -10 -10 -9 -9 -8 -7 -7 ------- Run | Yrd Mat Min Mat Sto Mat Fac Low Maximum Alert Level 1 | . . . . . 1 . . Low Security (%) 99 | 100 100 100 100 100 97 100 . Level 1 . | . . . . . 2 . . Level 2 . | . . . . . . . . Level 3 . | . . . . . . . . Level 4 . | . . . . . . . . Level 5 . | . . . . . . . . High Security . | . . . . . . . . Max Security . | . . . . . . . . Peak Influence 208 | 10 90 1 93 72 208 169 . Initial 67 | . . 1 . 34 21 67 . Average 54 | 1 36 . 44 27 75 73 . Influence Increases 1740 | 25 110 . 203 162 366 764 110 Destroy 0b10 Robot/C 1080 | . 80 . 120 120 200 460 100 Destroy 0b10 Robot/NC 110 | 25 5 . 35 15 10 20 . Destroy Leader 272 | . 20 . 36 12 54 140 10 Successful Hack 22 | . 5 . 12 . . 5 . Disable Machine 75 | . . . . . 15 60 . Destroy Structure 91 | . . . . . 87 4 . Lose Combat Pursuer 90 | . . . . 15 . 75 . Influence Decreases 1740 | 25 105 5 120 193 270 747 275 Entered New Map 227 | . . 4 . 49 31 81 62 Time Decay 1280 | 25 105 1 120 144 189 526 170 Lost Part 233 | . . . . . 50 140 43 Squads Dispatched 21 | . 2 . 1 . 3 15 . Investigation 5 | . 2 . 1 . . 2 . Extermination 3 | . . . . . . 3 . Reinforcement 6 | . . . . . 3 3 . Assault . | . . . . . . . . Garrison 7 | . . . . . . 7 . Intercept . | . . . . . . . . Searches Triggered . | . . . . . . . . Construction Impeded 2 | . . . . . 1 1 . Haulers Reinforced . | . . . . . . . . Active Scanning Responses . | . . . . . . . . Cargo Convoy Interrupts . | . . . . . . . . Stealth | -11 -10 -10 -9 -9 -8 -7 -7 --------- Run | Yrd Mat Min Mat Sto Mat Fac Low Distress Signals 6 | . . . 2 . 2 2 . Communications Jammed . | . . . . . . . . Distress Signals . | . . . . . . . . Times Spotted 89 | . 4 3 11 6 16 34 15 Peak Tracking Total 13 | . 3 3 3 3 3 4 13 Tactical Retreats 4 | . . . . 1 . 3 . Traps | -11 -10 -10 -9 -9 -8 -7 -7 ------- Run | Yrd Mat Min Mat Sto Mat Fac Low Traps Triggered 5 | . 1 . 1 1 . 2 . Indirectly . | . . . . . . . . Trap Hack Attempts . | . . . . . . . . Triggered . | . . . . . . . . Disarmed . | . . . . . . . . Reprogrammed . | . . . . . . . . Reused . | . . . . . . . . Traps Extracted . | . . . . . . . . Installed . | . . . . . . . . Triggered . | . . . . . . . . Machines | -11 -10 -10 -9 -9 -8 -7 -7 ---------- Run | Yrd Mat Min Mat Sto Mat Fac Low Machines Disabled 5 | . . . . . 1 4 . Max in Single Turn 1 | . . . . . 1 1 . Machines Repaired . | . . . . . . . . Machines Dismantled . | . . . . . . . . Machines Sabotaged . | . . . . . . . . Overloaded Fab Kills . | . . . . . . . . Hacking | -11 -10 -10 -9 -9 -8 -7 -7 --------- Run | Yrd Mat Min Mat Sto Mat Fac Low Machines Accessed 7 | . 1 . 1 1 1 3 . Terminals 4 | . 1 . . 1 . 2 . Fabricators . | . . . . . . . . Repair Stations 1 | . . . 1 . . . . Recycling Units . | . . . . . . . . Scanalyzers 1 | . . . . . 1 . . Garrison Access 1 | . . . . . . 1 . Total Hacks 18 | . 2 . 3 1 5 7 . Successful 8 | . 2 . 1 . 3 2 . Failed 10 | . . . 2 1 2 5 . Catastrophic 1 | . . . . . . 1 . Database Lockouts . | . . . . . . . . Manual . | . . . . . . . . Terminals 8 | . 2 . . 1 . 5 . Fabricators . | . . . . . . . . Repair Stations 3 | . . . 3 . . . . Recycling Units . | . . . . . . . . Scanalyzers 5 | . . . . . 5 . . Garrison Access 2 | . . . . . . 2 . Terminal Hacks 4 | . 2 . . . . 2 . Robot Analysis 1 | . . . . . . 1 . Prototype ID Bank 1 | . 1 . . . . . . Alert Level 1 | . . . . . . 1 . Locate Traps 1 | . 1 . . . . . . Fabricator Hacks . | . . . . . . . . Repair Station Hacks 1 | . . . 1 . . . . Scan Component 1 | . . . 1 . . . . Recycling Unit Hacks . | . . . . . . . . Scanalyzer 3 | . . . . . 3 . . Retrieve Study 3 | . . . . . 3 . . Garrison Access Hacks . | . . . . . . . . Unauthorized Hacks . | . . . . . . . . Terminals . | . . . . . . . . Fabricators . | . . . . . . . . Repair Stations . | . . . . . . . . Recycling Units . | . . . . . . . . Scanalyzers . | . . . . . . . . Garrison Access . | . . . . . . . . Data Cores Recovered . | . . . . . . . . Used . | . . . . . . . . Hacking Detections 4 | . 1 . 1 . . 2 . Full Trace Events 2 | . . . . . . 2 . Feedback Events . | . . . . . . . . Feedback Blocked . | . . . . . . . . Robot Schematics Acquired . | . . . . . . . . Robots Built . | . . . . . . . . Authchips . | . . . . . . . . Time . | . . . . . . . . Total Robot Build Rating . | . . . . . . . . Part Schematics Acquired . | . . . . . . . . Parts Built . | . . . . . . . . Authchips . | . . . . . . . . Time . | . . . . . . . . Total Part Build Rating . | . . . . . . . . Part Studies Acquired 3 | . . . . . 3 . . Parts Repaired . | . . . . . . . . Time . | . . . . . . . . Parts Recycled . | . . . . . . . . Recycled Matter . | . . . . . . . . Retrieved Matter . | . . . . . . . . Retrieved Components . | . . . . . . . . Parts Scanalyzed . | . . . . . . . . Part Schematics Acquired . | . . . . . . . . Parts Damaged . | . . . . . . . . Bothacking | -11 -10 -10 -9 -9 -8 -7 -7 ------------ Run | Yrd Mat Min Mat Sto Mat Fac Low Used RIF Installer . | . . . . . . . . Robots Hacked . | . . . . . . . . Non-combat . | . . . . . . . . Combat . | . . . . . . . . Robot Hacks Applied . | . . . . . . . . Relay Couplers Released . | . . . . . . . . Fabnet Peak Effective % . | . . . . . . . . Robots Rewired . | . . . . . . . . Allies Hacked . | . . . . . . . . Hacks Repelled . | . . . . . . . . Allies | -11 -10 -10 -9 -9 -8 -7 -7 -------- Run | Yrd Mat Min Mat Sto Mat Fac Low Total Allies . | . . . . . . . . Largest Group . | . . . . . . . . Highest-Rated Group . | . . . . . . . . Highest-Rated Ally . | . . . . . . . . Total Orders . | . . . . . . . . Ally Attacks . | . . . . . . . . Total Damage . | . . . . . . . . Kills . | . . . . . . . . Allies Corrupted . | . . . . . . . . Allies Melted . | . . . . . . . . Intel | -11 -10 -10 -9 -9 -8 -7 -7 ------- Run | Yrd Mat Min Mat Sto Mat Fac Low Active Infowar (turns) 2262 | 89 249 208 365 347 415 589 . Optics 1376 | . . . 25 347 415 589 . Terrain 451 | 14 249 188 . . . . . Seismic 2032 | 89 249 208 365 347 415 359 . Robot Analysis Total 1 | . . . . . . 1 . Derelict Logs Recovered 1 | . . . . . . . 1 Drone Launches . | . . . . . . . . Drone Recoveries . | . . . . . . . . Exploration | -11 -10 -10 -9 -9 -8 -7 -7 ------------- Run | Yrd Mat Min Mat Sto Mat Fac Low Turns Passed 3553 | 130 249 208 365 347 415 1461 378 Spaces Moved 1737 | 73 146 174 154 182 191 619 198 Core 78 | 15 1 . . . . 59 3 Treads 1275 | . . . 148 182 191 559 195 Legs 383 | 58 145 174 6 . . . . Wheels . | . . . . . . . . Hover . | . . . . . . . . Flight 1 | . . . . . . 1 . Fastest Speed 50 | 50 120 120 120 170 170 50 50 Average Speed 156 | 107 120 120 168 170 170 170 158 Slowest Speed 295 | 120 150 120 170 170 170 295 160 Overloaded Moves . | . . . . . . . . Propulsion Burnouts . | . . . . . . . . Robots Hopped . | . . . . . . . . Potential Cave-ins . | . . . . . . . . Cave-ins Triggered . | . . . . . . . . Exploration Rate (%) 22 | 4 16 40 16 38 19 19 27 Regions Visited 7 Branch Regions 3 Pre-discovered Areas . | . . . . . . . . Known Exits Taken . | . . . . . . . . Unknown Exits Taken 7 | 1 1 1 1 1 1 1 . Scrap Searched . | . . . . . . . . Spaces Dug . | . . . . . . . . Terrain Destroyed 100 | . . . . . 97 2 1 Melee . | . . . . . . . . Projectile 3 | . . . . . . 2 1 AOE 97 | . . . . . 97 . . Terrain Rammed . | . . . . . . . . Walls Destroyed . | . . . . . . . . Machines Disabled . | . . . . . . . . Actions | -11 -10 -10 -9 -9 -8 -7 -7 --------- Run | Yrd Mat Min Mat Sto Mat Fac Low Total 2254 | 100 190 173 219 195 252 892 233 Wait 225 | . 13 . 17 4 37 138 16 Move 1730 | 72 145 173 153 181 190 618 198 Hop . | . . . . . . . . Pick Up 42 | 8 3 . 10 . 2 19 . Fast Attach 20 | 2 3 . 3 . . 11 1 Attach 23 | 5 . . 3 . 2 13 . Detach . | . . . . . . . . Swap 14 | . 4 . 5 . 1 4 . Drop 27 | . 5 . 10 . 1 11 . Fire 142 | 13 17 . 18 10 19 56 9 Melee 11 | . . . . . . 11 . Ram 1 | . . . . . . . 1 Kick . | . . . . . . . . Crush 8 | . . . . . . . 8 Escape Stasis 11 | . . . . . . 11 . Rewire . | . . . . . . . . Trap . | . . . . . . . . Miscellaneous . | . . . . . . . . Route ------- -11/Scrapyard -10/Materials -10/Mines -9/Materials -9/Storage -8/Materials -7/Factory -7/Lower Caves History --------- Turn | Location | Event 3 | -11/Scrapyard | Discovered new exit (range 15) 131 | -11/Scrapyard | Entered Materials 132 | -10/Materials | Met a group of wandering Federalists 145 | -10/Materials | Discovered new exit (range 11) 380 | -10/Materials | Entered Mines 426 | -10/Mines | Met a Derelict bent on vengeance 432 | -10/Mines | Discovered new exit (range 9) 501 | -10/Mines | Build established: Scavenger-Mutant 588 | -10/Mines | Entered Materials 588 | -9/Materials | Evolved 2 slots: Weapon x2 884 | -9/Materials | Build established: Gunner 914 | -9/Materials | Discovered new exit (range 7) 953 | -9/Materials | Entered Storage 1237 | -9/Storage | Build established: Skirmisher 1270 | -9/Storage | Discovered new exit (range 17) 1300 | -9/Storage | Entered Materials 1300 | -8/Materials | Evolved 2 slots: Propulsion x1, Utility x1 1602 | -8/Materials | Build established: Gunner 1675 | -8/Materials | Discovered new exit (range 14) 1715 | -8/Materials | Entered Factory 1715 | -7/Factory | Evolved 2 slots: Propulsion x1, Utility x1 1744 | -7/Factory | Lost 5 parts (1n4w) 1768 | -7/Factory | Garrison activated, responded to threat 2069 | -7/Factory | Garrison activated, responded to threat 2108 | -7/Factory | Lost 3 parts (1p1u1w) 2166 | -7/Factory | Lost 3 parts (1n1u1w) 2307 | -7/Factory | Build established: Mutant 2423 | -7/Factory | Core integrity fell below 50% 2740 | -7/Factory | Build established: Gunner 3145 | -7/Factory | Discovered new exit (range 14) 3164 | -7/Factory | Garrison activated, responded to threat 3176 | -7/Factory | Entered Lower Caves 3269 | -7/Lower Caves | Attracted the attention of an 0b10 checkpoint 3531 | -7/Lower Caves | Attracted the attention of an 0b10 base 3546 | -7/Lower Caves | Core integrity fell below 20% 3554 | -7/Lower Caves | Destroyed by S-27 Virus with Autogun Last Messages --------------- 03542_ Slammed into S-27 Virus. 03543_ Imp. Heat Sink destroyed. 03543_ Penetrated by Slug. 03545_ Slammed into S-27 Virus. 03545_ Hvy. Ion Cannon destroyed. 03546_ Slug penetrates S-27 Virus. 03546_ S-27 Virus destroyed. 03547_ Slammed into S-27 Virus. 03548_ VTOL Module fries itself beyond repair. 03548_ Hvy. Ion Cannon destroyed. 03548_ Critical hit (Burn: +37). 03549_ Penetrated by Slug. 03549_ Lgt. Treads destroyed. 03549_ Imp. Cooling System destroyed. 03551_ Slammed into S-27 Virus. 03551_ Pulse Rifle destroyed. 03551_ Mic. Nuclear Core destroyed. 03551_ Penetrated by Slug. 03552_ VTOL Module fries itself beyond repair. Map ----- +----------------------------------------------------+ | ???????????????????????????????????## ###?????## | | ??????????????????????????????????## ##????# | | ???????????????????????????????#### #???## | | ??????????????????????????????## ###### | | ?????????????????????????????## ### | | ?????????????????????????????# ## | | ????????????????????????????######### | | ???????????????????????????? ????#### | | ????????????????????????????? ???????### | | ?????????????????????+####???# ?????????## | | ????????????????????% """""?# #?????????# ### | | ???????????????????? ??# #????????## #?? | | ??????????????#""" ??# ####?????# #?? | | ??????????????# ??# ##???## ### | | ??????????????# ??# ##### | | ??????????????# """"" ???+ | | ??????????????# " " ???+ # | | ???????????????? ???# ######## ## | | ????????????????? #???# #####??????## ##? | | ??????????????????? #???# #???????????####?? | | ????????????????????# #???# #????????????????? | | ????????????????????# #???# #????????????????? | | ????????????????????# %#???# #????????????????? | | ????????????????????# %%%#???# #????????????????? | | ????????????????######/%###### #????????????????? | | ???????????# [s%s@ #????????????????? | | ???????????# = #????????????????? | | ????????????############;########????????????????? | | ???????????????????????###???????????????????????? | | ?????????????????????????????????????????????????? | | ?????????????????????????????????????????????????? | | ?????????????????????????????????????????????????? | | ?????????????????????????????????????????????????? | | ?????????????????????????????????????????????????? | | ?????????????????????????????????????????????????? | | ?????????????????????????????????????????????????? | | ?????????????????????????????????????????????????? | | | | | | | | | | | | | | | | | | | | | | | | | | | +----------------------------------------------------+ Best States ------------- Heat Dissipation 75 Energy Generation 15 Energy Capacity 280 Matter Stores 300 Matter Capacity 300 Sight Range 18 Terrain Scan Range 16 Terrain Scan Density 10 Additional Mass Support 9 Armor Coverage 150 Evasion (%) 55 Targeting Accuracy 5 Recoil Reduction 3 Particle Charging 15 Item Schematics ----------------- None Robot Schematics ------------------ None Fabricated ------------ Nothing Repaired ---------- Nothing Studied --------- Flak Cannon | -8/Materials | Hacked Arm. Treads | -8/Materials | Hacked Hpw. Shotgun | -8/Materials | Hacked Alien Tech Used ----------------- None Achievements -------------- Bumper Bots Challenges ------------ None Game ------ Seed SurgeLobotomyAutopenetrator Manual? 0 Play Time 00:37:04 Cumulative 26.9 hours Start 2025.11.21 @ 21:29:09 End 2025.11.21 @ 22:09:23 Sessions 1 Manual Loads 0 Difficulty Rogue Special Mode None Game No. 64 Rogue 64 Adventurer 0 Explorer 0 Win Type - Total 0 Types 0/0/0/0/0/0/0/0/0/0 Lore% 17 Gallery% 22 Achievement% 16 Wizard Run 0 Options --------- Layout 1 ASCII 0 Keyboard 0 Movement Mouse Keybinds 0 Fullscreen 0 Font 20/SmallcapsGlow Map View 50x35 Zoom Use 0% Tactical HUD 1 Map Filters NONE Filters NONE Steam 1 RUN: 83293d1e-2209-4ba8-80fa-a6b0382c7f15